bitfinex/quotes_ETHUSD_20250216
["timestamp","ask_amount","ask_price","bid_price","bid_amount"]
[1739689979553,3.69891,2703.5,2703.0,3.82317457]
[1739689979753,7.66774,2703.6,2703.1,3.69945]
[1739689980058,3.69893,2703.5,2703.2,0.12338943]
[1739689980418,3.69911,2703.4,2703.2,0.12338943]
[1739689980625,3.69911,2703.4,2703.0,3.69957]
[1739689980824,3.69911,2703.4,2703.3,0.12327381]
[1739689981024,3.69911,2703.4,2702.9,4.50091]
[1739689981358,3.69911,2703.4,2702.9,5.320977]
[1739689981518,3.69911,2703.4,2703.0,0.12361084]
[1739689982463,0.7674,2703.8,2703.0,0.12361084]
[1739689982775,3.69905,2703.4,2703.0,0.12361084]
[1739689984025,3.69905,2703.4,2703.0,0.02361084]
[1739689984226,3.69905,2703.4,2703.0,0.11992706]
[1739689984426,3.69918,2703.3,2703.0,0.11992706]
[1739689988458,0.268,2703.5,2703.0,0.11992706]
[1739689988657,3.69918,2703.3,2703.0,0.11992706]
[1739689990052,7.39848,2703.3,2703.0,0.11992706]
[1739689990231,3.69932,2703.2,2703.0,0.11992706]
[1739689990563,4.49328,2703.3,2703.0,0.11992706]
[1739689991639,3.69918,2703.3,2703.0,0.11992706]
[1739689992265,3.69906,2703.4,2703.0,0.11992706]
[1739689992429,3.69921,2703.3,2703.0,0.11992706]
[1739689993071,3.69906,2703.4,2703.0,0.11992706]
[1739689993278,7.39823,2703.4,2703.0,0.11992706]
[1739689993577,3.69906,2703.4,2703.0,0.11992706]
[1739689993772,3.69922,2703.3,2703.0,0.11992706]
[1739689994471,3.69904,2703.4,2703.0,3.81950706]
[1739689994675,0.268,2703.5,2703.0,3.81950706]
[1739689994841,3.96699,2703.5,2703.0,3.81950706]
[1739689995042,3.69911,2703.4,2703.0,0.11992706]
[1739689995243,7.39823,2703.4,2703.0,0.11992706]
[1739689995544,3.69918,2703.3,2703.0,0.11992706]
[1739689997073,3.69924,2703.3,2703.0,0.11992706]
[1739689997435,3.69911,2703.4,2703.0,0.11992706]
[1739689997971,3.96698,2703.5,2703.0,3.81943706]
[1739689998167,3.69898,2703.5,2703.0,3.81943706]
[1739689998482,3.96603,2703.5,2703.1,0.7836]
[1739689998683,3.96603,2703.5,2703.1,0.90351719]
[1739689999068,3.69904,2703.4,2703.1,0.90351719]
[1739689999465,3.69928,2703.3,2703.1,0.90351719]
[1739690000182,7.39821,2703.4,2703.1,0.90351719]
[1739690000384,3.69924,2703.3,2703.1,0.90351719]
[1739690001555,3.69904,2703.4,2703.1,0.90351719]
[1739690001756,3.69918,2703.3,2703.1,0.90351719]
[1739690004409,3.96601,2703.5,2703.1,0.90351719]
[1739690004558,3.6991,2703.4,2703.1,0.90351719]
[1739690006000,3.69904,2703.4,2703.1,0.90351719]
[1739690006299,3.69907,2703.4,2703.1,0.90351719]
[1739690006481,3.96594,2703.5,2703.1,0.90351719]
[1739690006861,3.69906,2703.4,2703.1,0.90351719]
[1739690007768,0.267,2703.5,2703.1,0.90351719]
[1739690007963,3.96592,2703.5,2703.1,0.90351719]
[1739690008690,3.96492,2703.5,2703.1,4.60295719]
[1739690009092,3.96492,2703.5,2703.1,5.73320891]
[1739690009291,3.96492,2703.5,2703.1,2.03376891]
[1739690009982,7.66391,2703.5,2703.1,2.03376891]
[1739690010369,3.96492,2703.5,2703.1,2.03376891]
[1739690010565,7.66391,2703.5,2703.1,2.03376891]
[1739690010770,3.96492,2703.5,2703.1,5.73317891]
[1739690012371,3.96492,2703.5,2703.1,2.03376891]
[1739690014195,3.96492,2703.5,2703.1,0.90351719]
[1739690014510,7.6639,2703.5,2703.1,0.90351719]
[1739690014791,3.69912,2703.4,2703.1,0.90351719]
[1739690015389,3.96492,2703.5,2703.1,0.90351719]
[1739690015588,3.9649,2703.5,2703.1,4.60294719]
[1739690016300,0.266,2703.5,2703.2,3.69929]
[1739690016500,0.266,2703.5,2703.2,3.81905548]
[1739690016659,0.266,2703.5,2703.2,0.11976548]
[1739690017661,0.266,2703.5,2703.2,3.81901548]
[1739690017866,0.266,2703.5,2703.2,4.64921903]
[1739690018383,0.266,2703.5,2703.3,3.69911]
[1739690018576,0.266,2703.5,2703.2,4.64925903]
[1739690018777,0.266,2703.5,2703.4,0.11954082]
[1739690018980,0.266,2703.5,2703.3,0.11965314]
[1739690019289,0.266,2703.5,2703.4,0.11954082]
[1739690019477,0.266,2703.5,2703.2,3.69929]
[1739690019679,0.266,2703.5,2703.4,0.11954082]
[1739690019914,0.266,2703.5,2703.2,3.69929]
[1739690020197,0.266,2703.5,2703.4,3.81858082]
[1739690020400,0.265,2703.7,2703.3,0.11960393]
[1739690020601,0.265,2703.7,2703.4,0.1194916]
[1739690020989,0.265,2703.7,2703.2,3.69929]
[1739690021294,0.265,2703.7,2703.2,4.517489]
[1739690021501,3.96369,2703.7,2703.3,0.11960393]
[1739690021679,3.69879,2703.6,2703.2,3.69925]
[1739690021879,3.69879,2703.6,2703.4,0.1194916]
[1739690022178,3.69879,2703.6,2703.2,3.69925]
[1739690022390,3.69879,2703.6,2703.5,0.11937929]
[1739690022567,3.69879,2703.6,2703.2,3.69925]
[1739690022767,3.96371,2703.7,2703.5,0.11937929]
[1739690022968,3.96371,2703.7,2703.2,3.69925]
[1739690023169,3.96371,2703.7,2703.6,0.11926698]
[1739690023371,3.96371,2703.7,2703.1,4.48293]
[1739690023570,3.96371,2703.7,2703.6,0.11926698]
[1739690023804,0.265,2703.7,2703.3,3.69915]
[1739690023972,3.96363,2703.7,2703.6,0.11926698]
[1739690026907,0.1496,2704.0,2703.8,0.8162]
[1739690027270,0.1496,2704.0,2703.9,0.11888088]
[1739690028209,4.19113505,2704.0,2703.9,0.11888088]
[1739690029019,4.53437727,2704.0,2703.9,0.11888088]
[1739690029393,0.83615727,2704.0,2703.9,0.11888088]
[1739690030497,0.83615727,2704.0,2703.9,0.58224997]
[1739690030700,0.83615727,2704.0,2703.9,4.28060997]
[1739690031214,0.83615727,2704.0,2703.9,5.59720997]
[1739690031588,0.49291505,2704.0,2703.9,5.59720997]
[1739690032492,0.1496,2704.0,2703.9,5.59720997]
[1739690036519,0.1496,2704.0,2703.9,1.34884997]
[1739690036691,0.1496,2704.0,2703.9,0.11888088]
[1739690037113,0.1496,2704.0,2703.7,7.46517]
[1739690037304,0.1496,2704.0,2703.9,0.11846437]
[1739690037503,0.1496,2704.0,2703.8,3.81699666]
[1739690037703,0.1496,2704.0,2703.9,3.81682437]
[1739690037904,0.1496,2704.0,2703.9,4.94500881]
[1739690039725,0.1496,2704.0,2703.9,6.26160881]
[1739690041332,0.1496,2704.0,2703.9,5.13342437]
[1739690048675,0.1496,2704.0,2703.9,4.78222437]
[1739690050087,0.1496,2704.0,2703.9,4.01562437]
[1739690055184,0.1496,2704.0,2703.9,7.01562437]
[1739690056234,0.1496,2704.0,2703.9,9.22380793]
[1739690056531,0.1496,2704.0,2703.9,10.51603572]
[1739690060844,0.1496,2704.0,2703.9,11.25253834]
[1739690062080,0.1496,2704.0,2703.9,11.35253834]
[1739690074419,0.1496,2704.0,2703.9,11.55253834]
[1739690075153,0.1496,2704.0,2703.9,16.92253834]
[1739690080166,0.7918,2704.9,2704.8,3.69713]
[1739690080537,0.7918,2704.9,2704.8,3.81403016]
[1739690081458,0.7918,2704.9,2704.8,0.11690016]
[1739690081764,0.7918,2704.9,2704.7,6.69725]
[1739690082063,0.7918,2704.9,2704.8,1.47898352]
[1739690083250,0.8298,2705.1,2704.8,1.47898352]
[1739690084464,4.52659,2705.1,2704.8,0.66690016]
[1739690084639,0.8298,2705.1,2704.8,0.66690016]
[1739690084957,4.52652,2705.1,2704.8,0.66690016]
[1739690085326,0.8298,2705.1,2704.8,4.36401016]
[1739690085729,0.8298,2705.1,2704.8,0.66690016]
[1739690085953,4.52653,2705.1,2704.8,0.66690016]
[1739690086962,4.52652,2705.1,2704.8,0.66690016]
[1739690087168,0.8298,2705.1,2704.8,0.66690016]
[1739690087765,4.52653,2705.1,2704.8,0.66690016]
[1739690089571,3.69633,2705.4,2705.0,0.55]
[1739690089766,0.8086,2705.2,2704.8,0.11690016]
[1739690089939,4.50518,2705.2,2705.1,0.11626214]
[1739690090266,0.8086,2704.8,2704.4,3.0]
[1739690090768,0.8086,2704.7,2704.5,0.1169452]
[1739690091155,0.8086,2704.7,2704.4,3.0]
[1739690091355,0.8086,2704.7,2704.6,0.11683298]
[1739690091562,0.8086,2704.7,2704.5,6.8144352]
[1739690091765,0.8086,2704.7,2704.6,0.11688212]
[1739690092937,0.8086,2704.7,2704.6,3.81428212]
[1739690093142,0.8086,2704.7,2704.6,3.6974]
[1739690093341,0.8086,2704.7,2704.6,3.81428212]
[1739690094274,0.8086,2704.7,2704.6,4.36428212]
[1739690094574,0.8086,2704.7,2704.6,5.17047633]
[1739690094800,3.69658,2705.2,2704.6,5.17047633]
[1739690095000,0.8086,2705.1,2704.8,3.69712]
[1739690095144,0.8086,2705.1,2705.0,4.24685]
[1739690095540,0.8086,2705.1,2705.0,4.36327019]
[1739690097089,0.8086,2705.4,2705.1,3.69671]
[1739690097461,0.8086,2705.4,2705.2,0.11619583]
[1739690097778,3.69632,2705.4,2704.9,3.0]
[1739690097981,0.8086,2705.2,2704.9,3.0]
[1739690100353,0.8086,2705.2,2704.9,4.039432]
[1739690100556,0.8086,2705.2,2704.9,7.736392]
[1739690100857,0.8086,2705.2,2705.0,3.69679]
[1739690101171,0.8086,2705.2,2705.0,4.24685]
[1739690101850,0.8086,2705.2,2705.0,0.55]
[1739690103290,0.8086,2705.2,2705.0,4.24679]
[1739690103589,0.8086,2705.4,2705.1,4.09033906]
[1739690103779,0.8086,2705.4,2705.1,3.69672]
[1739690104147,0.8086,2705.4,2705.2,3.81268391]
[1739690104383,0.8086,2705.4,2705.2,0.11611391]
[1739690104760,0.8086,2705.4,2705.1,3.69671]
[1739690105098,0.8086,2705.4,2705.3,0.11600175]
[1739690105294,0.8086,2705.4,2705.2,0.11611391]
[1739690105468,0.8086,2705.4,2705.3,0.11600175]
[1739690106408,0.8086,2705.4,2705.3,3.81244175]
[1739690106698,0.8087,2705.8,2705.4,3.69628]
[1739690106905,4.50451,2705.8,2705.3,3.81244175]
[1739690107199,4.50451,2705.8,2705.5,0.11577743]
[1739690107375,4.50451,2705.8,2705.4,0.11588958]
[1739690107577,4.50451,2705.8,2705.3,3.69644]
[1739690107895,4.50451,2705.8,2705.5,0.11577743]
[1739690108097,4.50451,2705.8,2705.4,0.11588958]
[1739690108296,4.50451,2705.8,2705.6,0.11566529]
[1739690108594,4.50451,2705.8,2705.7,0.11555315]
[1739690108977,4.50451,2705.8,2705.3,4.516675]
[1739690109176,3.6959,2705.7,2705.4,0.8213185]
[1739690109373,3.6959,2705.7,2705.2,3.69656]
[1739690109605,3.69624,2705.5,2705.1,0.55]
[1739690109781,0.8087,2705.4,2705.1,0.55]
[1739690110708,0.8087,2705.4,2705.2,3.69658]
[1739690111036,0.8087,2705.4,2705.1,4.24663]
[1739690111363,0.8087,2705.4,2705.1,5.0752362]
[1739690113602,0.8087,2705.4,2705.1,1.3786062]
[1739690114654,0.8087,2705.4,2705.1,5.0752562]
[1739690114806,0.8087,2705.4,2705.1,8.7718962]
[1739690115251,0.8087,2705.4,2705.1,5.0752462]
[1739690115737,0.8087,2705.4,2705.2,0.50752462]
[1739690115929,0.778,2705.6,2705.2,4.20406462]
[1739690116841,0.778,2705.6,2705.2,0.50752462]
[1739690117047,0.778,2705.6,2705.3,3.69643]
[1739690117246,0.778,2705.6,2705.2,0.50752462]
[1739690117447,0.778,2705.6,2705.2,4.20401462]
[1739690117747,0.778,2705.6,2705.3,3.69644]
[1739690118751,0.778,2705.6,2705.2,4.20409462]
[1739690119045,3.69622,2705.5,2705.1,5.0752462]
[1739690119252,3.69622,2705.5,2705.3,0.11589695]
[1739690119415,0.778,2705.6,2705.2,0.11600912]
[1739690119614,0.778,2705.6,2705.4,0.11578479]
[1739690119805,4.47403,2705.6,2705.2,3.69651]
[1739690120009,4.47403,2705.6,2705.5,0.11567263]
[1739690120205,4.47403,2705.6,2705.2,4.490825]
[1739690120455,4.47403,2705.6,2705.5,0.11567263]
[1739690120919,4.47403,2705.6,2705.1,7.94325]
[1739690121124,4.47403,2705.6,2705.2,0.11600912]
[1739690121647,3.69623,2705.5,2705.2,0.11600912]
[1739690121951,0.778,2705.6,2705.2,0.11600912]
[1739690122150,3.69619,2705.5,2705.2,0.11600912]
[1739690122541,0.778,2705.6,2705.2,3.81249912]
[1739690122912,4.47404,2705.6,2705.2,3.81249912]
[1739690123549,4.47404,2705.6,2705.2,0.11600912]
[1739690123854,3.69618,2705.5,2705.2,0.11600912]
[1739690124152,4.47404,2705.6,2705.2,0.11600912]
[1739690125056,0.778,2705.6,2705.2,3.81257912]
[1739690125265,4.47406,2705.6,2705.2,4.61850903]
[1739690125469,4.47406,2705.6,2705.2,0.92193903]
[1739690126536,0.778,2705.6,2705.2,4.61851903]
[1739690127766,0.778,2705.6,2705.2,4.61844903]
[1739690129075,4.47407,2705.6,2705.2,0.92193903]
[1739690129290,4.47407,2705.6,2705.2,4.61849903]
[1739690130275,3.69599,2705.7,2705.3,0.5168499]
[1739690130476,3.69599,2705.7,2705.2,3.81256912]
[1739690130681,3.69599,2705.7,2705.4,0.11577822]
[1739690130983,3.69599,2705.7,2705.5,0.11566606]
[1739690131494,3.69603,2705.6,2705.2,3.69656]
[1739690131701,3.69603,2705.6,2705.1,0.55]
[1739690131976,0.7946,2705.5,2705.1,4.24671]
[1739690132176,0.7946,2705.5,2705.1,5.28444737]
[1739690132674,4.49077,2705.5,2705.1,5.28444737]
[1739690133679,0.7946,2705.5,2705.1,5.28444737]
[1739690134253,0.7946,2705.5,2705.2,0.11600254]
[1739690134442,0.7946,2705.5,2705.2,3.81253254]
[1739690134778,0.7946,2705.5,2705.2,4.73223053]
[1739690135095,0.7946,2705.5,2705.2,1.03570053]
[1739690135576,0.7946,2705.5,2705.2,3.81255254]
[1739690136296,0.7818,2706.0,2705.2,0.11600254]
[1739690136455,0.7818,2706.0,2705.7,3.69589]
[1739690136774,0.7818,2706.0,2705.8,0.11533294]
[1739690136980,4.47729,2706.0,2705.5,3.69606]
[1739690137184,4.47729,2706.0,2705.9,0.11522082]
[1739690137343,4.47729,2706.0,2705.5,3.69606]
[1739690137543,4.47729,2706.0,2705.6,0.11541965]
[1739690138351,0.7818,2706.0,2705.6,3.81135965]
[1739690138946,0.34354072,2705.9,2705.6,3.81135965]
[1739690139148,0.34354072,2705.9,2705.7,0.75074197]
[1739690139349,0.34354072,2705.9,2705.8,0.11519539]
[1739690139563,0.34354072,2705.9,2705.7,5.20596197]
[1739690139886,0.34354072,2705.9,2705.8,0.11519539]
[1739690140184,0.34354072,2705.9,2705.7,5.20596197]
[1739690140479,0.34354072,2705.9,2705.8,0.11519539]
[1739690140982,3.69535,2706.1,2705.8,0.11519539]
[1739690140983,3.69535,2706.1,2705.8,0.11514628]
[1739690141185,7.39078,2706.1,2705.8,0.11514628]
[1739690141360,3.69535,2706.1,2705.7,1.51014197]
[1739690141562,3.69535,2706.1,2705.8,0.11514628]
[1739690141884,3.69535,2706.1,2705.7,1.51014197]
[1739690142088,3.69535,2706.1,2705.9,0.11503416]
[1739690142286,3.69535,2706.1,2705.7,1.51014197]
[1739690142287,3.69535,2706.1,2705.8,0.11514628]
[1739690142592,3.69535,2706.1,2705.9,0.11503416]
[1739690143086,3.69535,2706.1,2705.7,1.51014197]
[1739690143280,3.69535,2706.1,2706.0,0.11492205]
[1739690143487,3.69535,2706.1,2705.7,0.7594]
[1739690143688,3.69535,2706.1,2706.0,0.11492205]
[1739690143888,3.69535,2706.1,2705.7,0.7594]
[1739690144094,3.69535,2706.1,2706.0,0.11492205]
[1739690144303,3.69535,2706.1,2705.7,0.7594]
[1739690144473,3.69535,2706.1,2706.0,0.11492205]
[1739690144673,3.69535,2706.1,2705.7,1.204935]
[1739690144905,3.69535,2706.1,2706.0,0.11492205]
[1739690145076,3.69565,2705.9,2705.5,0.7594]
[1739690145286,3.69565,2705.9,2705.5,1.874583]
[1739690145812,3.69565,2705.9,2705.5,5.570753]
[1739690146303,4.47729,2706.0,2705.5,5.570753]
[1739690149210,4.47729,2706.0,2705.6,0.11523628]
[1739690150106,0.7818,2706.0,2705.6,0.11523628]
[1739690150411,3.69564,2705.9,2705.6,0.11523628]
[1739690151211,3.69564,2705.9,2705.6,1.05346221]
[1739690151589,3.69564,2705.9,2705.6,0.11523628]
[1739690155113,0.7818,2706.0,2705.6,0.11523628]
[1739690155506,3.69564,2705.9,2705.6,0.11523628]
[1739690156282,3.69577,2705.8,2705.6,0.11523628]
[1739690157902,0.7818,2706.0,2705.6,0.11523628]
[1739690158108,4.47736,2706.0,2705.6,0.11523628]
[1739690158419,3.69556,2706.0,2705.7,0.11512415]
[1739690158777,3.69568,2705.9,2705.5,3.69616]
[1739690158978,3.69568,2705.9,2705.6,0.11523628]
[1739690159732,3.69577,2705.8,2705.6,0.11523628]
[1739690161320,3.6959,2705.7,2705.6,0.11523628]
[1739690161617,3.6959,2705.7,2705.4,0.7535]
[1739690161827,3.6959,2705.7,2705.6,0.1152461]
[1739690162023,3.6959,2705.7,2705.5,0.11535824]
[1739690162315,3.6959,2705.7,2705.6,0.1152461]
[1739690162519,4.46827,2705.8,2705.6,0.1152461]
[1739690162716,4.46827,2705.8,2705.4,0.7535]
[1739690162921,4.46827,2705.8,2705.7,0.11514706]
[1739690163116,4.46827,2705.8,2705.4,0.7535]
[1739690163326,4.46827,2705.8,2705.7,0.11514706]
[1739690163483,0.7725,2705.8,2705.4,0.7535]
[1739690163822,7.39141,2705.9,2705.4,4.44971]
[1739690164021,7.39141,2705.9,2705.5,0.11537134]
[1739690164225,7.3914,2705.9,2705.5,0.11537134]
[1739690164730,3.69577,2705.8,2705.5,0.11537134]
[1739690165694,3.69581,2705.8,2705.5,0.11537134]
[1739690167142,3.69564,2705.9,2705.5,0.11537134]
[1739690167307,3.69561,2706.0,2705.6,0.57347903]
[1739690167647,3.69561,2706.0,2705.7,0.11514706]
[1739690168520,4.47766,2706.8,2706.1,3.69528]
[1739690168706,3.69462,2706.7,2706.1,5.11665413]
[1739690168912,4.4776,2706.8,2706.2,4.39666715]
[1739690169110,8.1721,2706.8,2706.3,0.7539]
[1739690169341,4.4776,2706.8,2706.3,0.7539]
[1739690169647,3.69454,2706.7,2706.4,0.11425758]
[1739690169940,3.69467,2706.6,2706.4,0.11425758]
[1739690173747,7.38943,2706.6,2706.4,0.11425758]
[1739690173950,3.6948,2706.5,2706.4,0.11425758]
[1739690174308,3.6948,2706.5,2705.9,0.7539]
[1739690174309,3.69511,2706.3,2705.9,0.7539]
[1739690174513,8.17292,2706.5,2705.9,4.894413]
[1739690174745,3.69494,2706.4,2705.9,4.894413]
[1739690175151,4.47801,2706.5,2705.9,4.894413]
[1739690175448,3.6947,2706.6,2706.0,0.55]
[1739690175663,0.7832,2706.7,2706.2,3.6951]
[1739690175954,4.47784,2706.7,2706.2,3.6951]
[1739690176556,3.69473,2706.6,2706.1,4.44924]
[1739690176731,3.69491,2706.5,2706.1,1.623384]
[1739690178155,3.69491,2706.5,2706.1,5.318724]
[1739690178451,3.69491,2706.5,2706.1,1.623384]
[1739690179255,3.69502,2706.4,2706.2,0.11017053]
[1739690179621,3.69508,2706.3,2706.2,0.11017053]
[1739690180121,3.69508,2706.3,2705.9,0.7619]
[1739690180313,3.69508,2706.3,2706.2,0.11017053]
[1739690180518,3.69508,2706.3,2706.0,0.445753]
[1739690180752,3.69491,2706.5,2706.2,0.11017053]
[1739690180930,3.69504,2706.4,2706.1,0.11028262]
[1739690181130,3.69504,2706.4,2706.3,0.11005844]
[1739690181339,3.69504,2706.4,2706.2,0.11017053]
[1739690181654,3.69504,2706.4,2706.3,0.11005844]
[1739690182043,3.69504,2706.4,2705.9,0.7619]
[1739690182242,3.69514,2706.3,2705.9,1.562666]
[1739690182923,7.39007,2706.4,2705.9,5.258226]
[1739690183120,3.69503,2706.4,2705.9,5.258226]
[1739690183881,3.69503,2706.4,2705.9,1.562666]
[1739690184028,7.39006,2706.4,2705.9,5.258266]
[1739690184374,3.69515,2706.3,2706.0,0.8953936]
[1739690184540,3.69523,2706.2,2706.0,0.8953936]
[1739690184718,3.69515,2706.3,2705.9,0.7619]
[1739690185174,0.7832,2706.7,2705.9,0.7619]
[1739690185393,3.69483,2706.5,2706.0,3.69542]
[1739690186323,3.69483,2706.5,2706.1,3.69535]
[1739690187172,3.69483,2706.5,2706.0,0.55]
[1739690187361,3.69508,2706.3,2706.1,0.50075]
[1739690187524,3.69521,2706.2,2705.6,10.40137903]
[1739690187728,3.69539,2706.1,2705.6,10.40137903]
[1739690188042,3.69521,2706.2,2705.7,4.45777]
[1739690188260,3.69521,2706.2,2705.7,0.7619]
[1739690188657,3.69521,2706.2,2705.7,4.45777]
[1739690188859,3.69521,2706.2,2705.8,0.8031249]
[1739690189030,3.69551,2706.0,2705.8,0.8031249]
[1739690189230,3.69545,2706.1,2705.8,0.8031249]
[1739690189733,3.69553,2706.0,2705.8,0.8031249]
[1739690190176,3.69545,2706.1,2705.8,0.8031249]
[1739690191282,3.69544,2706.1,2705.8,0.8031249]
[1739690191463,7.39087,2706.1,2705.8,0.8031249]
[1739690191776,3.69549,2706.0,2705.8,0.8031249]
[1739690192963,0.7728,2706.1,2705.4,0.7619]
[1739690193279,7.39198,2705.7,2705.4,0.7619]
[1739690193425,3.69598,2705.7,2705.4,0.7619]
[1739690193626,7.39196,2705.7,2705.4,0.7619]
[1739690194064,7.39196,2705.7,2705.5,0.10849846]
[1739690194228,3.69598,2705.7,2705.5,0.10849846]
[1739690195030,3.69573,2705.9,2705.5,0.10849846]
[1739690195359,3.69572,2705.9,2705.5,0.10849846]
[1739690195546,3.69549,2706.0,2705.6,0.45665985]
[1739690195752,0.264,2706.1,2705.7,4.50239]
[1739690195948,0.264,2706.1,2705.7,4.61075231]
[1739690196145,3.95936,2706.1,2705.7,0.91486231]
[1739690196349,0.264,2706.1,2705.7,0.91486231]
[1739690196549,3.6955,2706.0,2705.7,0.91486231]
[1739690196749,3.6955,2706.0,2705.8,0.46108923]
[1739690196978,0.264,2706.1,2705.8,0.46108923]
[1739690197282,0.264,2706.1,2705.9,0.1081446]
[1739690197439,3.95935,2706.1,2705.9,0.1081446]
[1739690198479,0.264,2706.1,2705.9,0.1081446]
[1739690198834,3.95936,2706.1,2705.9,0.1081446]
[1739690200187,0.264,2706.1,2705.9,0.1081446]
[1739690200542,0.264,2706.1,2705.9,0.61530498]
[1739690201070,4.44908,2706.3,2705.9,0.61530498]
[1739690201884,8.14424,2706.3,2705.9,0.61530498]
[1739690202037,4.44908,2706.3,2705.9,0.61530498]
[1739690202243,3.69498,2706.4,2706.0,0.8065]
[1739690202489,3.69498,2706.4,2706.0,1.42626499]
[1739690203258,3.69508,2706.4,2706.0,1.42626499]
[1739690203468,4.44891,2706.5,2706.0,1.42626499]
[1739690203670,3.69509,2706.3,2706.0,1.42626499]
[1739690206603,3.69522,2706.2,2706.0,1.42626499]
[1739690207107,3.69509,2706.3,2706.0,0.61976499]
[1739690207271,3.69509,2706.3,2706.0,0.10803249]
[1739690207471,4.44935,2706.1,2705.7,3.0]
[1739690208093,0.754,2706.1,2705.7,6.69582]
[1739690209304,3.69522,2706.2,2705.8,0.10819467]
[1739690209511,3.69522,2706.2,2705.8,3.69575]
[1739690209678,3.69522,2706.2,2705.9,0.77765755]
[1739690212310,3.69505,2706.4,2706.0,0.8327]
[1739690212470,7.39009,2706.4,2706.0,0.94067044]
[1739690213168,3.69509,2706.3,2706.0,0.94067044]
[1739690214008,3.69504,2706.4,2706.0,0.94067044]
[1739690214218,3.6951,2706.3,2706.0,0.94067044]
[1739690214572,3.69508,2706.3,2706.0,0.94067044]
[1739690216307,3.69504,2706.4,2706.0,4.63613044]
[1739690216613,7.39011,2706.4,2706.0,0.94067044]
[1739690216773,3.6951,2706.3,2706.0,0.94067044]
[1739690216978,3.6951,2706.3,2706.0,1.77125598]
[1739690217713,3.69502,2706.4,2706.0,1.77125598]
[1739690217910,7.39006,2706.4,2706.0,1.77125598]
[1739690218107,3.69511,2706.3,2706.0,1.77125598]
[1739690219245,3.69524,2706.2,2706.0,1.77125598]
[1739690219535,3.69511,2706.3,2706.0,1.77125598]
[1739690219693,3.6949,2706.5,2706.0,1.77125598]
[1739690220110,3.69512,2706.3,2706.0,1.77125598]
[1739690220589,3.69525,2706.2,2706.0,1.77125598]
[1739690222115,7.39028,2706.3,2706.0,1.77125598]
[1739690222332,3.69508,2706.4,2706.0,1.77125598]
[1739690222648,3.69517,2706.3,2706.0,0.94067044]
[1739690225128,3.69522,2706.2,2706.0,0.94067044]
[1739690226038,3.69518,2706.3,2706.0,0.94067044]
[1739690228920,7.39035,2706.3,2706.0,0.94067044]
[1739690229844,3.69517,2706.3,2706.0,0.94067044]
[1739690230136,7.39034,2706.3,2706.0,0.94067044]
[1739690230342,5.26037644,2706.6,2706.0,1.47125898]
[1739690230504,5.26037644,2706.6,2706.3,0.7931]
[1739690230937,5.26037644,2706.6,2706.4,0.10751883]
[1739690231308,8.95509644,2706.6,2706.4,0.10751883]
[1739690231943,3.6948,2706.5,2706.4,0.10751883]
[1739690234540,5.26037644,2706.6,2706.4,0.10751883]
[1739690234846,3.6948,2706.5,2706.4,0.10751883]
[1739690240950,3.695,2706.4,2706.1,0.7623]
[1739690241167,3.69521,2706.2,2706.0,0.53058854]
[1739690241465,3.69535,2706.1,2705.7,3.7623]
[1739690241642,4.52318,2706.3,2705.8,0.55]
[1739690241873,8.21838,2706.3,2705.8,4.24568]
[1739690242168,3.69508,2706.3,2705.8,4.24568]
[1739690242482,3.69508,2706.3,2705.9,0.7623]
[1739690242688,3.69508,2706.3,2706.0,0.500798]
[1739690243308,3.69496,2706.4,2706.0,0.500798]
[1739690243440,3.69496,2706.4,2706.1,0.7623]
[1739690243840,3.69483,2706.5,2706.1,0.7623]
[1739690248080,3.69495,2706.4,2706.1,0.7623]
[1739690248276,3.69495,2706.4,2706.1,1.2581518]
[1739690249777,3.69495,2706.4,2706.1,0.7623]
[1739690250169,7.38999,2706.4,2706.1,0.7623]
[1739690250681,3.69495,2706.4,2706.1,0.7623]
[1739690251775,3.69491,2706.5,2706.1,0.7623]
[1739690251975,0.8281,2706.7,2706.1,0.7623]
[1739690252150,3.69482,2706.5,2706.1,0.7623]
[1739690252350,3.695,2706.4,2706.1,0.7623]
[1739690254106,3.69482,2706.5,2706.1,0.7623]
[1739690254323,3.69496,2706.4,2706.2,0.10779196]
[1739690254766,3.69482,2706.5,2706.2,0.10779196]
[1739690255173,7.38973,2706.5,2706.2,0.10779196]
[1739690255372,3.69497,2706.4,2706.2,0.10779196]
[1739690261965,3.69481,2706.5,2706.2,0.10779196]
[1739690262161,3.69481,2706.5,2706.2,1.03354274]
[1739690262963,3.69481,2706.5,2706.2,0.10779196]
[1739690264778,3.69495,2706.4,2706.2,0.10779196]
[1739690265676,3.69469,2706.6,2706.2,0.10779196]
[1739690265872,3.69481,2706.5,2706.2,0.10779196]
[1739690266377,3.69506,2706.4,2706.2,0.10779196]
[1739690267486,3.69508,2706.3,2706.2,0.10779196]
[1739690268476,3.69502,2706.4,2706.2,0.10779196]
[1739690268875,3.69491,2706.5,2706.2,0.10779196]
[1739690269783,3.69495,2706.4,2706.2,0.10779196]
[1739690272281,3.69475,2706.6,2706.2,0.10779196]
[1739690272866,3.69492,2706.5,2706.2,0.10779196]
[1739690274886,0.8281,2706.7,2706.2,0.10779196]
[1739690275068,3.69487,2706.5,2706.2,0.10779196]
[1739690275771,0.8281,2706.7,2706.2,0.10779196]
[1739690275772,3.69508,2706.3,2706.2,0.10779196]
[1739690275972,3.69508,2706.3,2705.9,7.5166]
[1739690276181,4.45848,2706.3,2706.2,0.10774953]
[1739690276365,4.45848,2706.3,2705.9,0.8211]
[1739690276563,0.7634,2706.3,2706.2,0.10774953]
[1739690276877,3.69524,2706.2,2705.9,0.8211]
[1739690277692,3.69536,2706.1,2705.8,3.0]
[1739690277854,3.69536,2706.1,2705.8,3.892]
[1739690278166,7.39054,2706.2,2705.8,3.892]
[1739690278362,3.69524,2706.2,2705.8,3.892]
[1739690278890,7.39058,2706.2,2705.8,3.892]
[1739690279079,3.69524,2706.2,2705.8,3.892]
[1739690280263,3.69524,2706.2,2705.9,0.840897]